[Event "*** Titled Tuesday 3|2 Blitz"]
[Site "Chess.com"]
[Date "2016.02.02"]
[Round "5"]
[White "Yaacovn"]
[Black "DanielNaroditsky"]
[Result "0-1"]
[WhiteElo "2553"]
[BlackElo "2577"]
[TimeControl "180+2"]
[EndTime "17:56:09 PST"]
[Termination "DanielNaroditsky won by resignation"]

1. d4 {[%clk 0:03:01.9]} 1... Nf6 {[%clk 0:03:00.7]} 2. Nf3 {[%clk 0:03:02.8]}
2... g6 {[%clk 0:03:00.7]} 3. c4 {[%clk 0:03:03.6]} 3... Bg7 {[%clk 0:03:02]} 4.
Nc3 {[%clk 0:03:05.2]} 4... O-O {[%clk 0:02:59.9]} 5. g3 {[%clk 0:03:06.6]} 5...
d6 {[%clk 0:03:00.8]} 6. Bg2 {[%clk 0:03:08.1]} 6... Nbd7 {[%clk 0:03:02.2]} 7.
O-O {[%clk 0:03:09.7]} 7... e5 {[%clk 0:03:03.7]} 8. b3 {[%clk 0:03:11]} 8...
Re8 {[%clk 0:03:04.3]} 9. e3 {[%clk 0:03:12]} 9... c6 {[%clk 0:02:55.1]} 10. Ba3
{[%clk 0:03:04.2]} 10... Qa5 {[%clk 0:02:54.9]} 11. Qc1 {[%clk 0:03:04.8]} 11...
exd4 {[%clk 0:02:38.7]} 12. Nxd4 {[%clk 0:03:03]} 12... Qh5 {[%clk 0:02:09]} 13.
Bxd6 {[%clk 0:03:00.3]} 13... Ne5 {[%clk 0:02:09.7]} 14. Bxe5 {[%clk 0:03:00.9]}
14... Rxe5 {[%clk 0:02:06.5]} 15. Nce2 {[%clk 0:03:01.9]} 15... g5 {[%clk
0:01:57.6]} 16. f4 {[%clk 0:02:59.9]} 16... Re8 {[%clk 0:01:26.9]} 17. fxg5
{[%clk 0:02:52.4]} 17... Ng4 {[%clk 0:01:24.5]} 18. h4 {[%clk 0:02:47.8]} 18...
Nxe3 {[%clk 0:01:25]} 19. Rf2 {[%clk 0:02:26.5]} 19... Nxg2 {[%clk 0:01:00.2]}
20. Kxg2 {[%clk 0:02:22.4]} 20... c5 {[%clk 0:00:56.4]} 21. Nf4 {[%clk 0:02:23]}
21... Qg4 {[%clk 0:00:56.1]} 22. Nb5 {[%clk 0:02:20.9]} 22... Bxa1 {[%clk
0:00:51.5]} 23. Qxa1 {[%clk 0:02:22.8]} 23... Re3 {[%clk 0:00:52.5]} 24. Qc1
{[%clk 0:00:29]} 24... Rxg3+ {[%clk 0:00:42.9]} 25. Kh1 {[%clk 0:00:29.2]} 25...
Bf5 {[%clk 0:00:32.8]} 26. Nd6 {[%clk 0:00:28.8]} 26... Rd8 {[%clk 0:00:33.5]}
27. Qd2 {[%clk 0:00:15.1]} 27... Rxd6 {[%clk 0:00:32.1]} 0-1

[Event "*** Titled Tuesday 3|2 Blitz"]
[Site "Chess.com"]
[Date "2016.02.02"]
[Round "5"]
[White "Mornar1951"]
[Black "attack2mateU"]
[Result "0-1"]
[WhiteElo "2590"]
[BlackElo "2508"]
[TimeControl "180+2"]
[EndTime "17:56:23 PST"]
[Termination "attack2mateU won by resignation"]

1. Nf3 {[%clk 0:03:01.9]} 1... Nf6 {[%clk 0:02:59.6]} 2. c4 {[%clk 0:03:02.7]}
2... e6 {[%clk 0:02:58.6]} 3. g3 {[%clk 0:03:02.7]} 3... d5 {[%clk 0:02:59.5]}
4. d4 {[%clk 0:03:03]} 4... Bb4+ {[%clk 0:02:52.8]} 5. Bd2 {[%clk 0:03:03.3]}
5... Be7 {[%clk 0:02:53.9]} 6. Bg2 {[%clk 0:03:04.4]} 6... O-O {[%clk
0:02:54.8]} 7. O-O {[%clk 0:03:05.5]} 7... c6 {[%clk 0:02:55.4]} 8. Qc2 {[%clk
0:03:06.9]} 8... b6 {[%clk 0:02:56.3]} 9. Rd1 {[%clk 0:03:05.6]} 9... Ba6 {[%clk
0:02:55]} 10. b3 {[%clk 0:03:06.2]} 10... Nbd7 {[%clk 0:02:55.8]} 11. Bf4 {[%clk
0:03:03]} 11... Nh5 {[%clk 0:02:54.4]} 12. Bc1 {[%clk 0:03:01.1]} 12... f5
{[%clk 0:02:53.8]} 13. Bb2 {[%clk 0:02:46.3]} 13... Nhf6 {[%clk 0:02:44]} 14.
Nbd2 {[%clk 0:02:42.8]} 14... Ne4 {[%clk 0:02:41.9]} 15. e3 {[%clk 0:02:34.6]}
15... Rc8 {[%clk 0:02:40.4]} 16. Rac1 {[%clk 0:02:35.4]} 16... Qe8 {[%clk
0:02:35.4]} 17. Ne5 {[%clk 0:02:30.1]} 17... Nxe5 {[%clk 0:02:32.5]} 18. dxe5
{[%clk 0:02:32]} 18... Qh5 {[%clk 0:02:08.9]} 19. Nf3 {[%clk 0:02:25.1]} 19...
Qh6 {[%clk 0:02:01.4]} 20. Nd4 {[%clk 0:02:18.2]} 20... c5 {[%clk 0:01:41.2]}
21. Nxe6 {[%clk 0:02:18.7]} 21... Qxe6 {[%clk 0:01:40.2]} 22. cxd5 {[%clk
0:02:19.6]} 22... Qg6 {[%clk 0:01:30.2]} 23. f3 {[%clk 0:01:55.9]} 23... Ng5
{[%clk 0:01:15.3]} 24. h4 {[%clk 0:01:47.1]} 24... Nf7 {[%clk 0:01:10.4]} 25.
Kf2 {[%clk 0:01:45.3]} 25... Rfe8 {[%clk 0:01:09.3]} 26. f4 {[%clk 0:01:31.4]}
26... Rcd8 {[%clk 0:01:06.4]} 27. e4 {[%clk 0:01:22.1]} 27... Bc8 {[%clk
0:01:03]} 28. e6 {[%clk 0:01:21]} 28... Nh6 {[%clk 0:01:02.3]} 29. e5 {[%clk
0:01:09.3]} 29... Ng4+ {[%clk 0:00:58.7]} 30. Kg1 {[%clk 0:01:10.5]} 30... Ne3
{[%clk 0:00:59.3]} 31. Qe2 {[%clk 0:01:01.2]} 31... Nxd1 {[%clk 0:00:58.6]} 32.
Rxd1 {[%clk 0:01:03.1]} 32... Qxg3 {[%clk 0:00:52.6]} 33. d6 {[%clk 0:00:55.4]}
33... Bxe6 {[%clk 0:00:49]} 34. dxe7 {[%clk 0:00:56]} 34... Rxd1+ {[%clk
0:00:49.8]} 35. Qxd1 {[%clk 0:00:57.9]} 35... Qe3+ {[%clk 0:00:47]} 36. Kh1
{[%clk 0:00:56.5]} 36... Qxf4 {[%clk 0:00:48.2]} 37. Bd5 {[%clk 0:00:41.7]}
37... Qxh4+ {[%clk 0:00:48.5]} 38. Kg2 {[%clk 0:00:41.4]} 38... Qxe7 {[%clk
0:00:48.6]} 39. Bf3 {[%clk 0:00:42]} 39... Rd8 {[%clk 0:00:48.6]} 40. Qe2 {[%clk
0:00:42.4]} 40... Qg5+ {[%clk 0:00:49.1]} 41. Kf2 {[%clk 0:00:42.8]} 41... Rd2
{[%clk 0:00:50]} 0-1

[Event "*** Titled Tuesday 3|2 Blitz"]
[Site "Chess.com"]
[Date "2016.02.02"]
[Round "5"]
[White "SenseiJulio"]
[Black "LADIESGET2KNOWME"]
[Result "1-0"]
[WhiteElo "2516"]
[BlackElo "2316"]
[TimeControl "180+2"]
[EndTime "17:56:30 PST"]
[Termination "SenseiJulio won by resignation"]

1. e4 {[%clk 0:03:01.9]} 1... e6 {[%clk 0:03:01.1]} 2. b3 {[%clk 0:03:02.7]}
2... d5 {[%clk 0:03:02.2]} 3. Bb2 {[%clk 0:03:03.5]} 3... Nf6 {[%clk 0:03:03]}
4. e5 {[%clk 0:03:03.9]} 4... Nfd7 {[%clk 0:03:04.2]} 5. Qg4 {[%clk 0:03:05.4]}
5... c5 {[%clk 0:02:59]} 6. f4 {[%clk 0:03:05.8]} 6... Nc6 {[%clk 0:02:59.6]} 7.
Nf3 {[%clk 0:03:06.6]} 7... g6 {[%clk 0:02:47.6]} 8. Be2 {[%clk 0:03:04.6]} 8...
Bg7 {[%clk 0:02:43]} 9. O-O {[%clk 0:03:04.4]} 9... O-O {[%clk 0:02:40.2]} 10.
Qh3 {[%clk 0:02:54.8]} 10... b6 {[%clk 0:02:22.8]} 11. Ng5 {[%clk 0:02:46.1]}
11... h6 {[%clk 0:02:22.5]} 12. Nxe6 {[%clk 0:02:47.2]} 12... fxe6 {[%clk
0:02:22.6]} 13. Qxe6+ {[%clk 0:02:47.6]} 13... Kh7 {[%clk 0:02:23]} 14. Qxc6
{[%clk 0:02:47.5]} 14... Rb8 {[%clk 0:02:21.3]} 15. Qxd5 {[%clk 0:02:28.1]}
15... Bb7 {[%clk 0:02:22.3]} 16. Qd6 {[%clk 0:02:29.3]} 16... Qe8 {[%clk
0:01:41.1]} 17. Nc3 {[%clk 0:02:06.2]} 17... Rxf4 {[%clk 0:01:39.1]} 18. Bd3
{[%clk 0:01:56.6]} 18... Bxe5 {[%clk 0:01:34.2]} 19. Bxg6+ {[%clk 0:01:52.7]}
19... Qxg6 {[%clk 0:01:35.7]} 20. Qxd7+ {[%clk 0:01:53.3]} 20... Kh8 {[%clk
0:01:36.4]} 21. Nd5 {[%clk 0:00:42]} 21... Rxf1+ {[%clk 0:01:00.9]} 22. Rxf1
{[%clk 0:00:43.9]} 22... Bxb2 {[%clk 0:01:01.8]} 23. c3 {[%clk 0:00:44.9]} 23...
Rg8 {[%clk 0:00:49.7]} 24. g3 {[%clk 0:00:37.4]} 24... Bc6 {[%clk 0:00:37.8]}
25. Qc7 {[%clk 0:00:37.5]} 25... Ba8 {[%clk 0:00:22.7]} 26. Qe5+ {[%clk
0:00:34.5]} 26... Kh7 {[%clk 0:00:16.2]} 27. Nf6+ {[%clk 0:00:34.7]} 27... Kh8
{[%clk 0:00:14.6]} 28. Nh5+ {[%clk 0:00:33.6]} 28... Kh7 {[%clk 0:00:15.3]} 29.
Nf6+ {[%clk 0:00:33.5]} 29... Kh8 {[%clk 0:00:16.7]} 30. Nxg8+ {[%clk
0:00:34.5]} 30... Kxg8 {[%clk 0:00:18]} 31. Qb8+ {[%clk 0:00:34.5]} 31... Kh7
{[%clk 0:00:19.2]} 32. Qxa7+ {[%clk 0:00:34.3]} 32... Qg7 {[%clk 0:00:15.2]} 33.
Rf7 {[%clk 0:00:34.7]} 1-0

[Event "*** Titled Tuesday 3|2 Blitz"]
[Site "Chess.com"]
[Date "2016.02.02"]
[Round "5"]
[White "vellottiwizard"]
[Black "Gabrielian_Artur"]
[Result "0-1"]
[WhiteElo "2420"]
[BlackElo "2479"]
[TimeControl "180+2"]
[EndTime "17:57:02 PST"]
[Termination "Gabrielian_Artur won by resignation"]

1. e4 {[%clk 0:03:01.9]} 1... c5 {[%clk 0:02:58.2]} 2. Nf3 {[%clk 0:03:02.3]}
2... d6 {[%clk 0:02:59.2]} 3. d4 {[%clk 0:03:03.7]} 3... cxd4 {[%clk 0:03:00.5]}
4. Nxd4 {[%clk 0:03:05.6]} 4... Nf6 {[%clk 0:03:00.5]} 5. Nc3 {[%clk 0:03:06.8]}
5... a6 {[%clk 0:03:02]} 6. Be3 {[%clk 0:03:06.9]} 6... e6 {[%clk 0:03:02.9]} 7.
g4 {[%clk 0:03:07.2]} 7... h6 {[%clk 0:03:03.7]} 8. h4 {[%clk 0:02:53.1]} 8...
h5 {[%clk 0:03:03.3]} 9. g5 {[%clk 0:02:47.9]} 9... Ng4 {[%clk 0:03:04.2]} 10.
Qd2 {[%clk 0:02:48.8]} 10... g6 {[%clk 0:03:01.5]} 11. Be2 {[%clk 0:02:45.7]}
11... Nxe3 {[%clk 0:03:02]} 12. Qxe3 {[%clk 0:02:47.6]} 12... Bg7 {[%clk
0:03:02.8]} 13. O-O-O {[%clk 0:02:48.1]} 13... O-O {[%clk 0:03:02]} 14. f4
{[%clk 0:02:47.6]} 14... Nc6 {[%clk 0:02:59.9]} 15. Nb3 {[%clk 0:02:47]} 15...
b5 {[%clk 0:02:57.6]} 16. Bf3 {[%clk 0:02:22.3]} 16... Qc7 {[%clk 0:02:55.1]}
17. Kb1 {[%clk 0:02:19.9]} 17... Rb8 {[%clk 0:02:43.2]} 18. Ne2 {[%clk
0:01:38.2]} 18... a5 {[%clk 0:02:38.1]} 19. Nbd4 {[%clk 0:01:38.6]} 19... Nxd4
{[%clk 0:02:34.9]} 20. Nxd4 {[%clk 0:01:39.1]} 20... e5 {[%clk 0:02:28.4]} 21.
fxe5 {[%clk 0:01:34.2]} 21... Bxe5 {[%clk 0:02:28.8]} 22. Rd2 {[%clk 0:01:29.7]}
22... b4 {[%clk 0:02:27.5]} 23. Rhd1 {[%clk 0:01:30.1]} 23... a4 {[%clk
0:02:28.3]} 24. Ne2 {[%clk 0:01:26.6]} 24... a3 {[%clk 0:02:28.5]} 25. b3 {[%clk
0:01:21.4]} 25... Ba6 {[%clk 0:02:29.4]} 26. Nc1 {[%clk 0:01:01.2]} 26... Rfc8
{[%clk 0:02:28.5]} 27. Be2 {[%clk 0:01:00.6]} 27... Bxe2 {[%clk 0:02:25.9]} 28.
Nxe2 {[%clk 0:00:56.8]} 28... Rb5 {[%clk 0:02:23.2]} 29. c4 {[%clk 0:00:47.5]}
29... bxc3 {[%clk 0:02:20.2]} 30. Rc2 {[%clk 0:00:48.8]} 30... Rc5 {[%clk
0:02:13.9]} 31. Nc1 {[%clk 0:00:48.4]} 31... Rb5 {[%clk 0:02:04.6]} 32. Ne2
{[%clk 0:00:47.7]} 32... Qb7 {[%clk 0:02:01.4]} 33. Nc1 {[%clk 0:00:43.6]} 33...
Rb4 {[%clk 0:02:02.2]} 34. Re1 {[%clk 0:00:42.5]} 34... Kg7 {[%clk 0:01:56.7]}
35. Ka1 {[%clk 0:00:41.8]} 35... Rcc4 {[%clk 0:01:53.7]} 36. Nd3 {[%clk
0:00:30.3]} 36... Rxe4 {[%clk 0:01:54]} 37. Qc1 {[%clk 0:00:31]} 37... Rxe1
{[%clk 0:01:53.6]} 38. Qxe1 {[%clk 0:00:32.9]} 38... Re4 {[%clk 0:01:37.3]} 39.
Qc1 {[%clk 0:00:32.5]} 39... Bd4 {[%clk 0:01:34.3]} 40. b4 {[%clk 0:00:20.3]}
40... Rxh4 {[%clk 0:01:33.9]} 41. Qxa3 {[%clk 0:00:15.7]} 41... Rh1+ {[%clk
0:01:34.3]} 42. Nc1 {[%clk 0:00:16.7]} 42... Qe4 {[%clk 0:01:34.9]} 43. Kb1
{[%clk 0:00:14.2]} 43... h4 {[%clk 0:01:32.7]} 44. b5 {[%clk 0:00:12.7]} 44...
Rh2 {[%clk 0:01:30.2]} 45. Qb3 {[%clk 0:00:11.6]} 45... h3 {[%clk 0:01:31.2]}
0-1

[Event "*** Titled Tuesday 3|2 Blitz"]
[Site "Chess.com"]
[Date "2016.02.02"]
[Round "5"]
[White "DanielRensch"]
[Black "Anton_Demchenko"]
[Result "0-1"]
[WhiteElo "2339"]
[BlackElo "2623"]
[TimeControl "180+2"]
[EndTime "17:57:20 PST"]
[Termination "Anton_Demchenko won by checkmate"]

1. d4 {[%clk 0:03:01.9]} 1... Nf6 {[%clk 0:03:00.5]} 2. Nc3 {[%clk 0:02:58.3]}
2... d5 {[%clk 0:03:00.1]} 3. Bf4 {[%clk 0:02:58.8]} 3... e6 {[%clk 0:03:00.8]}
4. e3 {[%clk 0:02:59.5]} 4... Bb4 {[%clk 0:03:01]} 5. a3 {[%clk 0:02:59.4]} 5...
Bxc3+ {[%clk 0:03:00.3]} 6. bxc3 {[%clk 0:03:01.3]} 6... c5 {[%clk 0:03:01.6]}
7. c4 {[%clk 0:02:46.3]} 7... Ne4 {[%clk 0:02:45.8]} 8. Bd3 {[%clk 0:02:45.6]}
8... Qa5+ {[%clk 0:02:44.4]} 9. Kf1 {[%clk 0:02:45]} 9... O-O {[%clk 0:02:07]}
10. Nf3 {[%clk 0:02:21]} 10... Nc6 {[%clk 0:02:02.1]} 11. dxc5 {[%clk
0:02:19.1]} 11... Qxc5 {[%clk 0:01:57.4]} 12. cxd5 {[%clk 0:02:08.4]} 12... exd5
{[%clk 0:01:58.6]} 13. Ng5 {[%clk 0:02:08.4]} 13... Bf5 {[%clk 0:01:25.1]} 14.
h4 {[%clk 0:02:00.8]} 14... h6 {[%clk 0:01:06.8]} 15. g4 {[%clk 0:01:35.8]}
15... hxg5 {[%clk 0:01:00.7]} 16. hxg5 {[%clk 0:01:36.6]} 16... Bg6 {[%clk
0:01:01.8]} 17. Kg2 {[%clk 0:01:37.1]} 17... Rfe8 {[%clk 0:00:54.9]} 18. Qg1
{[%clk 0:01:12.4]} 18... Kf8 {[%clk 0:00:50.8]} 19. Qh2 {[%clk 0:01:12.7]} 19...
Ke7 {[%clk 0:00:52]} 20. f3 {[%clk 0:01:08.2]} 20... Rh8 {[%clk 0:00:23.1]} 21.
Qxh8 {[%clk 0:01:05]} 21... Rxh8 {[%clk 0:00:23.1]} 22. Rxh8 {[%clk 0:01:06.9]}
22... Nd6 {[%clk 0:00:24.1]} 23. Bxg6 {[%clk 0:01:08.2]} 23... fxg6 {[%clk
0:00:25.1]} 24. Rah1 {[%clk 0:01:09.7]} 24... Qxc2+ {[%clk 0:00:25.3]} 25. Kg3
{[%clk 0:01:11]} 25... Nf7 {[%clk 0:00:11]} 26. Rc8 {[%clk 0:01:05.3]} 26... Qb2
{[%clk 0:00:08.4]} 27. Rc7+ {[%clk 0:00:59.8]} 27... Ke6 {[%clk 0:00:09.5]} 28.
e4 {[%clk 0:00:34.3]} 28... d4 {[%clk 0:00:06.1]} 29. Rh7 {[%clk 0:00:32.5]}
29... d3 {[%clk 0:00:06.7]} 30. Rh2 {[%clk 0:00:33.3]} 30... Qc3 {[%clk
0:00:06.6]} 31. Bd2 {[%clk 0:00:32.7]} 31... Qd4 {[%clk 0:00:07.4]} 32. Bf4
{[%clk 0:00:33.3]} 32... Qg1+ {[%clk 0:00:07.9]} 33. Rg2 {[%clk 0:00:33.6]}
33... Qe1+ {[%clk 0:00:08.8]} 34. Kh3 {[%clk 0:00:34.1]} 34... Nce5 {[%clk
0:00:09.9]} 35. Bxe5 {[%clk 0:00:18.8]} 35... Nxe5 {[%clk 0:00:11.3]} 36. Rxg7
{[%clk 0:00:20.1]} 36... Nxf3 {[%clk 0:00:10.5]} 37. Rxg6+ {[%clk 0:00:21.3]}
37... Ke5 {[%clk 0:00:11.8]} 38. Rg8 {[%clk 0:00:14.4]} 38... Qh4# {[%clk
0:00:11.7]} 0-1

[Event "*** Titled Tuesday 3|2 Blitz"]
[Site "Chess.com"]
[Date "2016.02.02"]
[Round "5"]
[White "Hikaru"]
[Black "GMHess"]
[Result "1-0"]
[WhiteElo "2837"]
[BlackElo "2489"]
[TimeControl "180+2"]
[EndTime "17:57:26 PST"]
[Termination "Hikaru won by checkmate"]

1. b3 {[%clk 0:03:01.9]} 1... e5 {[%clk 0:02:57.9]} 2. Bb2 {[%clk 0:03:02.4]}
2... Nc6 {[%clk 0:02:59.6]} 3. e3 {[%clk 0:03:03.7]} 3... Nf6 {[%clk 0:03:00.8]}
4. Bb5 {[%clk 0:03:05]} 4... Bd6 {[%clk 0:03:02.4]} 5. Bxc6 {[%clk 0:03:05.2]}
5... dxc6 {[%clk 0:03:02.8]} 6. d3 {[%clk 0:03:07.1]} 6... O-O {[%clk
0:03:02.4]} 7. Nd2 {[%clk 0:03:08.6]} 7... Qe7 {[%clk 0:03:00.1]} 8. Ngf3 {[%clk
0:03:07]} 8... a5 {[%clk 0:02:53.5]} 9. O-O {[%clk 0:03:05]} 9... a4 {[%clk
0:02:53.3]} 10. Nc4 {[%clk 0:03:05.9]} 10... Nd7 {[%clk 0:02:24.2]} 11. e4
{[%clk 0:03:06.9]} 11... f6 {[%clk 0:02:09.2]} 12. Nh4 {[%clk 0:03:06.4]} 12...
Nc5 {[%clk 0:01:43.4]} 13. b4 {[%clk 0:02:49.7]} 13... Ne6 {[%clk 0:01:41.5]}
14. Nf5 {[%clk 0:02:50.2]} 14... Qd8 {[%clk 0:01:40.7]} 15. a3 {[%clk 0:02:49]}
15... c5 {[%clk 0:01:28.4]} 16. b5 {[%clk 0:02:49.3]} 16... Nd4 {[%clk
0:01:24.7]} 17. Bxd4 {[%clk 0:02:06.4]} 17... cxd4 {[%clk 0:01:23.1]} 18. Qf3
{[%clk 0:02:07.6]} 18... Bc5 {[%clk 0:00:52.3]} 19. Qg3 {[%clk 0:02:06.4]} 19...
Bxf5 {[%clk 0:00:51.4]} 20. exf5 {[%clk 0:02:08.3]} 20... Qd7 {[%clk 0:00:51]}
21. Qf3 {[%clk 0:02:08.3]} 21... Rab8 {[%clk 0:00:31]} 22. Rab1 {[%clk
0:02:06.9]} 22... Rfd8 {[%clk 0:00:30.2]} 23. g4 {[%clk 0:02:07.2]} 23... Qd5
{[%clk 0:00:30.4]} 24. Kg2 {[%clk 0:02:06.3]} 24... Bf8 {[%clk 0:00:27.4]} 25.
b6 {[%clk 0:02:00.2]} 25... c6 {[%clk 0:00:24.9]} 26. h4 {[%clk 0:02:01.4]}
26... Kf7 {[%clk 0:00:25.5]} 27. Rfe1 {[%clk 0:02:00.6]} 27... Qxf3+ {[%clk
0:00:25.1]} 28. Kxf3 {[%clk 0:02:02.5]} 28... Rd5 {[%clk 0:00:26.7]} 29. Ke4
{[%clk 0:02:00.1]} 29... Rb5 {[%clk 0:00:24.1]} 30. g5 {[%clk 0:01:53.8]} 30...
Rd8 {[%clk 0:00:22.9]} 31. Rg1 {[%clk 0:01:52.7]} 31... Rdd5 {[%clk 0:00:23.3]}
32. Rbe1 {[%clk 0:01:49.4]} 32... Rdc5 {[%clk 0:00:22]} 33. Rg3 {[%clk
0:01:47.5]} 33... Rxc4 {[%clk 0:00:22.7]} 34. dxc4 {[%clk 0:01:49.4]} 34... Rxb6
{[%clk 0:00:23.4]} 35. gxf6 {[%clk 0:01:46.6]} 35... gxf6 {[%clk 0:00:24.1]} 36.
f4 {[%clk 0:01:37.4]} 36... exf4 {[%clk 0:00:21.5]} 37. Rd3 {[%clk 0:01:39]}
37... Bc5 {[%clk 0:00:20.1]} 38. Kxf4 {[%clk 0:01:39.7]} 38... Rb2 {[%clk
0:00:21.7]} 39. Re2 {[%clk 0:01:31.4]} 39... Bd6+ {[%clk 0:00:15.8]} 40. Ke4
{[%clk 0:01:31.8]} 40... Be5 {[%clk 0:00:17.4]} 41. Rd1 {[%clk 0:01:20.7]} 41...
b5 {[%clk 0:00:16.8]} 42. cxb5 {[%clk 0:01:20.6]} 42... cxb5 {[%clk 0:00:18.3]}
43. Kd3 {[%clk 0:01:17.7]} 43... Ra2 {[%clk 0:00:16.3]} 44. Rb1 {[%clk 0:01:19]}
44... Rxa3+ {[%clk 0:00:17.7]} 45. Ke4 {[%clk 0:01:20.7]} 45... Rh3 {[%clk
0:00:12.4]} 46. Rxb5 {[%clk 0:01:21.8]} 46... a3 {[%clk 0:00:13.2]} 47. Rb7+
{[%clk 0:01:21.9]} 47... Ke8 {[%clk 0:00:12.1]} 48. Rg2 {[%clk 0:01:20.9]} 48...
Kf8 {[%clk 0:00:09.9]} 49. Ra7 {[%clk 0:01:20.6]} 49... Rc3 {[%clk 0:00:04.1]}
50. Kd5 {[%clk 0:01:14]} 50... h5 {[%clk 0:00:05]} 51. Rag7 {[%clk 0:01:12.7]}
51... d3 {[%clk 0:00:03]} 52. Rg8+ {[%clk 0:01:13.8]} 52... Ke7 {[%clk
0:00:04.5]} 53. R2g7# {[%clk 0:01:15.4]} 1-0

[Event "*** Titled Tuesday 3|2 Blitz"]
[Site "Chess.com"]
[Date "2016.02.02"]
[Round "5"]
[White "Jahonas"]
[Black "pedromartinez91"]
[Result "1-0"]
[WhiteElo "2199"]
[BlackElo "1987"]
[TimeControl "180+2"]
[EndTime "18:00:54 PST"]
[Termination "Jahonas won on time"]

1. d4 {[%clk 0:03:01.9]} 1... d5 {[%clk 0:02:59.2]} 2. Nf3 {[%clk 0:03:02.3]}
2... e6 {[%clk 0:03:00.6]} 3. c3 {[%clk 0:03:02.3]} 3... Nf6 {[%clk 0:03:02]} 4.
Bf4 {[%clk 0:03:03.4]} 4... Be7 {[%clk 0:03:03]} 5. Nbd2 {[%clk 0:03:04.6]} 5...
O-O {[%clk 0:03:03.8]} 6. e3 {[%clk 0:03:05.9]} 6... b6 {[%clk 0:03:04.7]} 7.
Bd3 {[%clk 0:03:07]} 7... Ba6 {[%clk 0:03:04.8]} 8. Bxa6 {[%clk 0:03:06.1]} 8...
Nxa6 {[%clk 0:03:05.4]} 9. Qa4 {[%clk 0:03:04.7]} 9... Nb8 {[%clk 0:03:05.2]}
10. O-O {[%clk 0:03:04.9]} 10... c5 {[%clk 0:03:06]} 11. Ne5 {[%clk 0:02:56.7]}
11... Qc8 {[%clk 0:03:05.9]} 12. Rac1 {[%clk 0:02:55]} 12... Nfd7 {[%clk
0:03:01.6]} 13. Ndf3 {[%clk 0:02:54.4]} 13... Bf6 {[%clk 0:02:58.6]} 14. c4
{[%clk 0:02:52.5]} 14... Nxe5 {[%clk 0:02:59]} 15. Bxe5 {[%clk 0:02:51.6]} 15...
Nd7 {[%clk 0:02:54.1]} 16. cxd5 {[%clk 0:02:49.1]} 16... exd5 {[%clk 0:02:51.3]}
17. Bxf6 {[%clk 0:02:45.4]} 17... Nxf6 {[%clk 0:02:51.4]} 18. dxc5 {[%clk
0:02:46]} 18... bxc5 {[%clk 0:02:51.9]} 19. b3 {[%clk 0:02:40.2]} 19... Qc7
{[%clk 0:02:47.3]} 20. Rc2 {[%clk 0:02:38.6]} 20... Rac8 {[%clk 0:02:43.8]} 21.
Rfc1 {[%clk 0:02:39]} 21... Qe7 {[%clk 0:02:38.8]} 22. h3 {[%clk 0:02:31.9]}
22... Rfd8 {[%clk 0:02:38.6]} 23. Qa3 {[%clk 0:02:32.1]} 23... Ne4 {[%clk
0:02:37]} 24. Nd4 {[%clk 0:02:24.8]} 24... Qf6 {[%clk 0:02:28.9]} 25. Nf3 {[%clk
0:01:57.6]} 25... a6 {[%clk 0:02:17.3]} 26. Qa5 {[%clk 0:01:23.7]} 26... h6
{[%clk 0:01:52.2]} 27. Nh2 {[%clk 0:01:19.1]} 27... c4 {[%clk 0:01:15.6]} 28.
Ng4 {[%clk 0:01:07.2]} 28... Qe6 {[%clk 0:01:04.5]} 29. bxc4 {[%clk 0:00:46.1]}
29... dxc4 {[%clk 0:01:04.8]} 30. Qe5 {[%clk 0:00:43.2]} 30... c3 {[%clk
0:00:14.5]} 31. Qxe6 {[%clk 0:00:42]} 31... fxe6 {[%clk 0:00:15.2]} 32. Kh2
{[%clk 0:00:26.2]} 32... h5 {[%clk 0:00:10.4]} 33. f3 {[%clk 0:00:24]} 33...
hxg4 {[%clk 0:00:06.9]} 34. fxe4 {[%clk 0:00:24.6]} 34... Rc4 {[%clk 0:00:05.7]}
35. Rxc3 {[%clk 0:00:24.2]} 35... Rxe4 {[%clk 0:00:06.6]} 36. hxg4 {[%clk
0:00:18.7]} 36... Rxg4 {[%clk 0:00:07.5]} 37. Rc8 {[%clk 0:00:18.6]} 37... Rxc8
{[%clk 0:00:05.8]} 38. Rxc8+ {[%clk 0:00:19.4]} 38... Kf7 {[%clk 0:00:07.1]} 39.
Rc7+ {[%clk 0:00:15]} 39... Kf6 {[%clk 0:00:07.6]} 40. Rc6 {[%clk 0:00:12.4]}
40... Ra4 {[%clk 0:00:08]} 41. Rc2 {[%clk 0:00:13.4]} 41... Ra3 {[%clk
0:00:08.7]} 42. Re2 {[%clk 0:00:13.8]} 42... Ke5 {[%clk 0:00:09.1]} 43. Kg3
{[%clk 0:00:15]} 43... Ke4 {[%clk 0:00:10.1]} 44. Kf2 {[%clk 0:00:16.3]} 44...
g5 {[%clk 0:00:10.7]} 45. Rb2 {[%clk 0:00:15.4]} 45... e5 {[%clk 0:00:09.7]} 46.
Rb4+ {[%clk 0:00:15.9]} 46... Kf5 {[%clk 0:00:10.6]} 47. g4+ {[%clk 0:00:15.7]}
47... Ke6 {[%clk 0:00:11.4]} 48. Rb2 {[%clk 0:00:14.8]} 48... Kd5 {[%clk
0:00:11.6]} 49. Kf3 {[%clk 0:00:16.1]} 49... e4+ {[%clk 0:00:11.5]} 50. Ke2
{[%clk 0:00:16.2]} 50... Kc5 {[%clk 0:00:11.2]} 51. Rd2 {[%clk 0:00:16]} 51...
Rc3 {[%clk 0:00:11.5]} 52. Rb2 {[%clk 0:00:14.7]} 52... a5 {[%clk 0:00:12.2]}
53. a4 {[%clk 0:00:13.7]} 53... Ra3 {[%clk 0:00:11.5]} 54. Rb5+ {[%clk
0:00:14.5]} 54... Kc6 {[%clk 0:00:12.3]} 55. Rxa5 {[%clk 0:00:16.4]} 55... Ra2+
{[%clk 0:00:12.1]} 56. Ke1 {[%clk 0:00:17.7]} 56... Kd6 {[%clk 0:00:11.8]} 57.
Rxg5 {[%clk 0:00:18.1]} 57... Rxa4 {[%clk 0:00:12.7]} 58. Kf2 {[%clk 0:00:19]}
58... Ra3 {[%clk 0:00:11.1]} 59. Rf5 {[%clk 0:00:19.2]} 59... Ke6 {[%clk
0:00:11.1]} 60. Rf8 {[%clk 0:00:19.9]} 60... Rd3 {[%clk 0:00:09.6]} 61. Re8+
{[%clk 0:00:19.7]} 61... Kf6 {[%clk 0:00:10.7]} 62. Rxe4 {[%clk 0:00:20.2]}
62... Kg5 {[%clk 0:00:11.7]} 63. Kf3 {[%clk 0:00:21.2]} 63... Rd1 {[%clk
0:00:12.7]} 64. Re5+ {[%clk 0:00:22.5]} 64... Kf6 {[%clk 0:00:11.2]} 65. Rf5+
{[%clk 0:00:23.4]} 65... Kg6 {[%clk 0:00:11.9]} 66. Ra5 {[%clk 0:00:19.6]} 66...
Rf1+ {[%clk 0:00:11.6]} 67. Kg2 {[%clk 0:00:20]} 67... Re1 {[%clk 0:00:12.1]}
68. Kf2 {[%clk 0:00:20.9]} 68... Rc1 {[%clk 0:00:12.2]} 69. Rf5 {[%clk
0:00:17.3]} 69... Rb1 {[%clk 0:00:11.4]} 70. Kf3 {[%clk 0:00:18.1]} 70... Rg1
{[%clk 0:00:10.8]} 71. e4 {[%clk 0:00:17.2]} 71... Rf1+ {[%clk 0:00:11.5]} 72.
Ke3 {[%clk 0:00:18.3]} 72... Rg1 {[%clk 0:00:12.1]} 73. Kf4 {[%clk 0:00:19.6]}
73... Rf1+ {[%clk 0:00:13]} 74. Ke5 {[%clk 0:00:20.8]} 74... Rg1 {[%clk
0:00:14.2]} 75. Rf8 {[%clk 0:00:21.1]} 75... Kg7 {[%clk 0:00:12]} 76. Rf4 {[%clk
0:00:22]} 76... Kg6 {[%clk 0:00:12.7]} 77. Ke6 {[%clk 0:00:22.8]} 77... Kg5
{[%clk 0:00:12.2]} 78. Rf8 {[%clk 0:00:23.5]} 78... Re1 {[%clk 0:00:10.6]} 79.
e5 {[%clk 0:00:24.3]} 79... Kxg4 {[%clk 0:00:10.3]} 80. Kd6 {[%clk 0:00:23.3]}
80... Rd1+ {[%clk 0:00:10.9]} 81. Ke7 {[%clk 0:00:24.2]} 81... Kg5 {[%clk
0:00:11]} 82. e6 {[%clk 0:00:24.5]} 82... Kg6 {[%clk 0:00:11.7]} 83. Rf2 {[%clk
0:00:24.2]} 83... Rd3 {[%clk 0:00:06.7]} 84. Ke8 {[%clk 0:00:24.1]} 84... Ra3
{[%clk 0:00:05.2]} 85. e7 {[%clk 0:00:24]} 85... Rd3 {[%clk 0:00:05.2]} 86. Kf8
{[%clk 0:00:16.5]} 1-0